bitfinex/quotes_SOLUSD_20250625
["timestamp","ask_amount","ask_price","bid_price","bid_amount"]
[1750828874378,23.28133862,145.66,145.63,3.5591618]
[1750828874578,5.14225709,145.65,145.63,3.5591618]
[1750828874779,23.28133862,145.66,145.63,3.5591618]
[1750828875007,5.14240093,145.65,145.63,3.5591618]
[1750828875274,23.28133862,145.66,145.62,10.42621092]
[1750828875576,5.14240129,145.65,145.62,10.42621092]
[1750828875753,23.28133862,145.66,145.62,10.42621092]
[1750828875957,5.14190047,145.65,145.62,10.42621092]
[1750828876156,23.28133862,145.66,145.62,10.42621092]
[1750828876364,5.14190844,145.65,145.62,10.42621092]
[1750828876574,23.28133862,145.66,145.62,10.42621092]
[1750828876779,5.14132804,145.65,145.62,10.42621092]
[1750828876982,23.28133862,145.66,145.62,10.42621092]
[1750828877286,5.14132007,145.65,145.62,10.42621092]
[1750828877490,23.28133862,145.66,145.62,10.42621092]
[1750828877783,5.1407825,145.65,145.62,10.42621092]
[1750828877982,23.28133862,145.66,145.62,10.42621092]
[1750828878282,5.1407825,145.65,145.62,10.42621092]
[1750828878480,23.28133862,145.66,145.62,10.42621092]
[1750828878682,5.14024657,145.65,145.62,10.42621092]
[1750828878882,23.28133862,145.66,145.62,10.42621092]
[1750828879179,5.14024692,145.65,145.62,10.42621092]
[1750828879359,23.28133862,145.66,145.62,6.86704912]
[1750828879562,23.28133862,145.66,145.62,10.42621092]
[1750828880172,23.28133862,145.66,145.63,10.42582384]
[1750828884285,23.28133862,145.66,145.63,3.5591618]
[1750828884992,26.84050042,145.66,145.62,10.4261671]
[1750828891590,23.28133862,145.66,145.63,3.5591618]
[1750828891781,26.84050042,145.66,145.62,10.4261671]
[1750828894391,23.28133862,145.66,145.65,3.5591618]
[1750828895696,23.28133862,145.66,145.65,10.42493591]
[1750828904097,23.28133862,145.66,145.65,6.86577411]
[1750828904288,23.28133862,145.66,145.65,10.42493591]
[1750828907102,23.28133862,145.66,145.65,3.5591618]
[1750828910204,23.28133862,145.66,145.62,5.94]
[1750828910386,26.84050042,145.66,145.62,10.42626942]
[1750828912908,23.28133862,145.66,145.62,10.42626942]
[1750828913810,23.28133862,145.66,145.63,3.5591618]
[1750828914493,10.42431387,145.67,145.63,3.5591618]
[1750828915206,6.86515207,145.67,145.63,3.5591618]
[1750828915406,10.42431387,145.67,145.63,3.5591618]
[1750828921907,26.0,145.7,145.66,3.5591618]
[1750828923114,26.0,145.7,145.66,10.42429336]
[1750828923321,26.0,145.7,145.67,3.5591618]
[1750828924333,26.0,145.7,145.67,10.42391412]
[1750828924496,26.0,145.7,145.67,3.5591618]
[1750828924696,26.0,145.7,145.66,6.86509937]
[1750828924904,26.0,145.7,145.66,10.42426117]
[1750828926005,26.0,145.7,145.67,3.5591618]
[1750828926416,26.0,145.7,145.67,10.42393084]
[1750828927724,26.0,145.7,145.66,10.42426186]
[1750828929020,29.5591618,145.7,145.66,10.42426186]
[1750828930294,34.69398856,145.7,145.66,10.42426186]
[1750828930500,34.69392541,145.7,145.66,10.42426186]
[1750828930929,29.5591618,145.7,145.66,10.42426186]
[1750828937623,3.5591618,145.69,145.64,18.64964886]
[1750828937824,3.5591618,145.68,145.64,22.20881066]
[1750828938733,3.5591618,145.68,145.64,29.07505619]
[1750828939237,3.5591618,145.68,145.64,10.42540733]
[1750828942136,10.42318192,145.69,145.65,3.5591618]
[1750828942436,26.0,145.7,145.67,3.5591618]
[1750828943145,3.5591618,145.71,145.67,3.5591618]
[1750828943331,5.13788457,145.7,145.67,3.5591618]
[1750828943533,10.42228278,145.71,145.67,3.5591618]
[1750828943741,5.13784202,145.7,145.67,3.5591618]
[1750828944042,3.5591618,145.69,145.64,3.5591618]
[1750828944618,3.5591618,145.68,145.64,3.5591618]
[1750828944824,3.5591618,145.68,145.64,10.42540451]
[1750828946042,10.42353217,145.68,145.64,6.86624271]
[1750828946243,3.5591618,145.67,145.63,3.5591618]
[1750828946437,3.5591618,145.66,145.61,3.5591618]
[1750828946940,3.5591618,145.66,145.62,3.5591618]
[1750828947242,3.5591618,145.67,145.62,3.5591618]
[1750828947429,36.4241597,145.67,145.62,10.42623939]
[1750828948322,38.41991047,145.67,145.62,12.42199016]
[1750828950428,5.55491257,145.66,145.62,12.42199016]
[1750828950621,12.42028113,145.66,145.61,6.8674817]
[1750828950927,5.55491257,145.65,145.61,5.55491257]
[1750828951231,5.55491257,145.65,145.6,18.36292183]
[1750828951549,5.55491257,145.64,145.6,18.36292183]
[1750828952327,5.55491257,145.63,145.6,5.94]
[1750828952826,5.55491257,145.61,145.6,5.94]
[1750828953034,5.55491257,145.61,145.57,12.42425746]
[1750828953232,5.55491257,145.61,145.56,25.51962156]
[1750828953434,5.55491257,145.6,145.56,24.20456143]
[1750828953733,5.55491257,145.6,145.56,5.55491257]
[1750828954534,5.55491257,145.6,145.56,12.42492444]
[1750828955335,5.55491257,145.58,145.53,44.48]
[1750828955544,5.55491257,145.57,145.53,12.42616128]
[1750828955729,5.55491257,145.57,145.53,31.07581014]
[1750828955935,5.55491257,145.57,145.53,24.20456143]
[1750828956155,5.55491257,145.57,145.52,12.79178976]
[1750828956156,5.55491257,145.57,145.52,18.34670233]
[1750828956357,12.4245345,145.57,145.52,18.34670233]
[1750828956529,12.4245345,145.57,145.52,11.47491257]
[1750828956729,12.4245345,145.57,145.53,5.55491257]
[1750828957342,5.55491257,145.56,145.52,11.47491257]
[1750828957535,5.55491257,145.54,145.52,5.92]
[1750828957844,5.55491257,145.53,145.47,6.87410658]
[1750828958154,5.55491257,145.52,145.48,5.55491257]
[1750828958737,5.55491257,145.52,145.48,12.42852762]
[1750828958944,6.87111447,145.54,145.48,12.42852762]
[1750828958945,5.55491257,145.53,145.48,12.42852762]
[1750828960157,5.55491257,145.53,145.48,6.87361505]
[1750828960455,12.42643602,145.53,145.47,6.87414021]
[1750828960639,5.55491257,145.51,145.47,5.55491257]
[1750828960838,5.55491257,145.52,145.46,12.79462792]
[1750828961145,5.55491257,145.52,145.47,5.55491257]
[1750828961654,7.18771257,145.53,145.48,12.42870965]
[1750828961837,7.18771257,145.53,145.49,5.55491257]
[1750828962446,7.18771257,145.53,145.48,12.42870965]
[1750828964262,31.55491257,145.49,145.43,5.55491257]
[1750828964437,31.55491257,145.49,145.45,5.55491257]
[1750828965938,31.55491257,145.49,145.45,12.43000959]
[1750828966337,6.8725285,145.51,145.45,12.43000959]
[1750828966539,5.55491257,145.49,145.45,12.43000959]
[1750828966746,5.55491257,145.49,145.44,6.87553155]
[1750828966945,5.55491257,145.49,145.44,12.43044412]
[1750828971285,5.55491257,145.49,145.45,5.55491257]
[1750828971451,5.55491257,145.5,145.46,5.55491257]
[1750828972054,31.55491257,145.51,145.46,5.55491257]
[1750828972966,5.55491257,145.5,145.46,12.42931733]
[1750828973472,5.55491257,145.5,145.46,18.34931733]
[1750828973666,26.0,145.51,145.47,5.55491257]
[1750828973987,31.55491257,145.51,145.47,5.55491257]
[1750828974273,5.55491257,145.5,145.46,18.34931733]
[1750828975656,26.0,145.51,145.47,5.55491257]
[1750828975863,31.55491257,145.51,145.47,5.55491257]
[1750828976061,5.55491257,145.5,145.46,12.79440476]
[1750828976349,5.55491257,145.5,145.46,18.34931733]
[1750828976968,26.0,145.51,145.47,5.55491257]
[1750828977279,5.55491257,145.51,145.47,5.55491257]
[1750828979062,5.55491257,145.51,145.47,12.42909555]
[1750828979372,13.23870579,145.52,145.47,12.42909555]
[1750828979571,5.55491257,145.51,145.47,12.42909555]
[1750828979762,13.23870579,145.52,145.48,5.55491257]
[1750828979763,11.92161257,145.52,145.48,5.55491257]
[1750828982181,11.92161257,145.52,145.47,12.42909555]
[1750828983356,5.55491257,145.51,145.47,12.42909555]
[1750828983979,6.3667,145.52,145.47,12.42909555]
[1750828984177,5.55491257,145.51,145.47,6.87418298]
[1750828988162,13.23876716,145.52,145.47,6.87418298]
[1750828988484,5.55491257,145.51,145.47,12.42909555]
[1750828988982,18.79367973,145.52,145.47,12.42909555]
[1750828990880,13.23876716,145.52,145.47,12.42909555]
[1750828991085,6.3667,145.52,145.48,5.55491257]
[1750828991382,11.92161257,145.52,145.48,5.55491257]
[1750828991584,11.92161257,145.52,145.47,12.42909555]
[1750828992164,18.79352245,145.52,145.47,12.42909555]
[1750828992877,5.55491257,145.51,145.47,12.42909555]
[1750828993191,5.55491257,145.51,145.47,6.87418298]
[1750828994590,5.55491257,145.51,145.47,12.42909555]
[1750828994790,18.79352245,145.52,145.47,12.42909555]
[1750828995293,11.92161257,145.52,145.47,12.42909555]
[1750828996095,18.79354489,145.52,145.47,12.42909555]
[1750828996694,11.92161257,145.52,145.47,12.42909555]
[1750828997090,18.79354787,145.52,145.47,12.42909555]
[1750828997893,6.3667,145.52,145.47,12.42909555]
[1750828998078,11.92161257,145.52,145.47,12.42909555]
[1750828999299,5.55491257,145.52,145.47,12.42909555]
[1750828999486,5.12958126,145.53,145.48,5.55491257]
[1750828999676,6.87078835,145.55,145.51,5.55491257]
[1750828999996,5.55491257,145.54,145.49,5.55491257]
[1750829000183,11.99943796,145.55,145.48,24.20456143]
[1750829000184,5.55491257,145.53,145.48,24.20456143]
[1750829000879,5.12864961,145.55,145.48,18.64964886]
[1750829001084,5.12864961,145.55,145.48,20.26254886]
[1750829001298,42.78056218,145.56,145.51,12.42706542]
[1750829001475,37.65191257,145.56,145.51,12.42706542]
[1750829002071,5.13629887,145.55,145.51,12.42706542]
[1750829002304,37.65191257,145.56,145.51,12.42706542]
[1750829002616,5.13988039,145.55,145.51,12.42706542]
[1750829003174,10.69479296,145.55,145.51,12.42706542]
[1750829003490,10.69511012,145.55,145.51,12.42706542]
[1750829004175,5.55491257,145.55,145.51,12.42706542]
[1750829005607,5.55491257,145.55,145.51,6.87215285]
[1750829005900,12.42544823,145.55,145.5,12.42765496]
[1750829006107,5.55491257,145.54,145.5,12.42765496]
[1750829007520,6.87053566,145.55,145.5,12.42765496]
[1750829007813,12.42544823,145.55,145.51,5.55491257]
[1750829008929,6.87053566,145.55,145.48,18.64964886]
[1750829009111,6.5501,145.51,145.41,20.53369637]
[1750829009423,26.0,145.47,145.41,6.54]
[1750829009578,26.0,145.47,145.41,12.09491257]
[1750829009786,5.55491257,145.44,145.41,6.54]
[1750829010134,5.55491257,145.46,145.42,5.55491257]
[1750829010305,5.55491257,145.44,145.41,6.54]
[1750829011412,5.55491257,145.45,145.41,6.54]
[1750829012212,5.55491257,145.44,145.41,6.54]
[1750829013315,6.87480561,145.46,145.35,18.64964886]
[1750829013316,26.0,145.42,145.35,18.64964886]
[1750829013893,26.0,145.42,145.34,13.42003129]
[1750829014219,5.55491257,145.4,145.35,24.20456143]
[1750829014513,26.0,145.42,145.35,18.64964886]
[1750829014709,5.55491257,145.39,145.35,24.20456143]
[1750829014917,32.87693307,145.42,145.35,31.08441044]
[1750829015097,5.55491257,145.4,145.35,31.08441044]
[1750829015300,5.55491257,145.39,145.35,25.52949787]
[1750829015504,5.55491257,145.39,145.35,31.08441044]
[1750829015711,5.55491257,145.39,145.35,25.52949787]
[1750829015894,32.87693307,145.42,145.35,25.52949787]
[1750829016094,5.55491257,145.39,145.35,31.08441044]
[1750829016296,5.55491257,145.39,145.34,13.42034705]
[1750829016496,5.55491257,145.4,145.35,5.55491257]
[1750829016801,32.87693307,145.42,145.34,13.42034705]
[1750829017006,5.55491257,145.39,145.34,18.97525962]
[1750829017211,32.87693307,145.42,145.34,13.42032779]
[1750829017599,6.3428,145.39,145.32,18.86324549]
[1750829017800,5.55491257,145.37,145.32,18.86324549]
[1750829018006,5.55491257,145.36,145.32,24.41815806]
[1750829018402,6.3428,145.39,145.32,31.29936465]
[1750829018726,5.55491257,145.37,145.32,31.29936465]
[1750829019025,6.3428,145.39,145.32,25.53085545]
[1750829019214,5.55491257,145.36,145.32,25.53085545]
[1750829019411,5.55491257,145.36,145.32,31.08576802]
[1750829019607,5.55491257,145.37,145.32,31.08576802]
[1750829020009,5.55491257,145.37,145.32,25.53085545]
[1750829020308,5.55491257,145.36,145.31,5.55491257]
[1750829020823,5.55491257,145.37,145.32,5.55491257]
[1750829021022,5.55491257,145.37,145.28,30.12229411]
[1750829021023,44.64964886,145.36,145.27,6.88373373]
[1750829021214,5.55491257,145.31,145.26,51.42408995]
[1750829021517,5.55491257,145.31,145.26,56.97900252]
[1750829021723,5.55491257,145.31,145.26,51.42408995]
[1750829021903,5.55491257,145.31,145.26,56.97900252]
[1750829022220,5.55491257,145.31,145.27,5.55491257]
[1750829022610,5.55491257,145.32,145.27,5.55491257]
[1750829022821,5.55491257,145.33,145.28,5.55491257]
[1750829023121,6.87994496,145.35,145.26,51.42408995]
[1750829023326,5.55491257,145.31,145.26,56.97900252]
[1750829023641,6.87994496,145.35,145.28,5.55491257]
[1750829023927,5.55491257,145.32,145.26,58.28406599]
[1750829024223,5.55491257,145.32,145.27,5.55491257]
[1750829024604,5.55491257,145.31,145.26,50.92406599]
[1750829024814,5.55491257,145.3,145.26,49.59491257]
[1750829025927,5.55491257,145.3,145.26,56.47909249]
[1750829026708,11.81121257,145.32,145.28,5.55491257]
[1750829026912,11.81121257,145.32,145.26,50.92417992]
[1750829027222,11.81121257,145.32,145.28,5.55491257]
[1750829027411,11.81121257,145.32,145.26,50.92417992]
[1750829027825,11.81121257,145.32,145.28,5.55491257]
[1750829028025,11.81121257,145.32,145.27,12.43854436]
[1750829028424,11.81121257,145.32,145.28,5.55491257]
[1750829029604,11.81121257,145.32,145.27,12.43854436]
[1750829030701,6.2563,145.32,145.28,5.55491257]
[1750829031928,6.2563,145.32,145.28,12.43810296]
[1750829032128,6.2563,145.32,145.28,11.93810296]
[1750829033430,6.2563,145.32,145.28,6.88319039]
[1750829033624,6.2563,145.32,145.28,12.43810296]
[1750829034118,6.2563,145.32,145.27,6.88373373]
[1750829034425,6.2563,145.32,145.28,5.55491257]
[1750829035431,6.2563,145.32,145.28,12.43806318]
[1750829037234,6.2563,145.32,145.28,5.55491257]
[1750829038130,6.2563,145.32,145.28,12.43795133]
[1750829038511,6.2563,145.32,145.28,6.88303876]
[1750829038713,11.81121257,145.32,145.28,6.88303876]
[1750829039226,6.2563,145.32,145.28,6.88303876]
[1750829039633,6.2563,145.32,145.28,12.43795133]
[1750829040241,11.81121257,145.32,145.27,6.88373373]
[1750829040537,6.2563,145.32,145.27,12.4386463]
[1750829040831,6.2563,145.32,145.28,5.55491257]
[1750829041739,6.2563,145.32,145.27,12.4386463]
[1750829042438,6.2563,145.32,145.28,5.55491257]
[1750829042616,5.55491257,145.31,145.27,6.88373373]
[1750829042816,6.2563,145.32,145.28,5.55491257]
[1750829043119,76.02979956,145.36,145.28,5.55491257]
[1750829043120,6.541,145.35,145.31,5.55491257]
[1750829043426,6.541,145.35,145.32,5.55491257]
[1750829043830,6.541,145.35,145.28,24.20456143]
[1750829044033,6.541,145.35,145.32,5.55491257]
[1750829044209,6.541,145.35,145.32,12.43619239]
[1750829044635,6.541,145.35,145.33,5.55491257]
[1750829044821,9.72114343,145.36,145.33,5.55491257]
[1750829045023,9.72114343,145.36,145.35,5.55491257]
[1750829045548,44.8297751,145.39,145.35,5.55491257]
[1750829045741,44.8297751,145.39,145.34,5.55491257]
[1750829047819,37.95171257,145.39,145.35,5.55491257]
[1750829050235,37.95171257,145.39,145.35,12.43476143]
[1750829050549,5.55491257,145.38,145.34,5.55491257]
[1750829051137,5.55491257,145.38,145.33,12.43552787]
[1750829052043,6.3968,145.39,145.37,5.55491257]
[1750829052252,21.29583289,145.43,145.34,18.64964886]
[1750829052437,5.55491257,145.42,145.38,5.55491257]
[1750829052750,5.55491257,145.41,145.34,18.64964886]
[1750829052942,5.55491257,145.41,145.36,5.55491257]
[1750829053442,5.55491257,145.41,145.36,12.43433802]
[1750829053648,5.55491257,145.41,145.37,5.55491257]
[1750829054032,5.55491257,145.41,145.36,6.87942545]
[1750829054232,17.55579774,145.42,145.37,5.55491257]
[1750829055428,12.00088517,145.42,145.37,5.55491257]
[1750829055738,5.55491257,145.41,145.37,5.55491257]
[1750829055939,5.55491257,145.4,145.35,6.87990172]
[1750829056143,5.55491257,145.39,145.35,5.55491257]
[1750829058144,5.55491257,145.39,145.34,6.88026845]
[1750829058355,14.03166422,145.39,145.35,5.55491257]
[1750829059737,8.47675165,145.39,145.35,5.55491257]
[1750829060349,14.03166422,145.39,145.35,5.55491257]
[1750829060649,14.03166422,145.39,145.34,6.88026845]
[1750829060842,14.03166422,145.39,145.34,12.43518102]
[1750829062837,14.03166422,145.39,145.35,5.55491257]
[1750829063655,14.03166422,145.39,145.34,5.55491257]
[1750829064155,14.03166422,145.39,145.34,12.43524354]
[1750829064853,8.47675165,145.39,145.34,12.43524354]
[1750829065239,8.47675165,145.39,145.34,5.55491257]
[1750829065552,8.47675165,145.39,145.34,12.43530692]
[1750829065971,1.5986,145.39,145.35,5.55491257]
[1750829067254,1.5986,145.39,145.36,5.55491257]
[1750829068250,8.47666127,145.39,145.33,18.64964886]
[1750829068555,8.47666127,145.39,145.35,5.55491257]
[1750829069625,8.47666127,145.39,145.33,18.64964886]
[1750829069831,8.47666127,145.39,145.34,5.55491257]
[1750829070051,8.47666127,145.39,145.35,5.55491257]
[1750829070546,8.47666127,145.39,145.32,6.88136526]
[1750829070741,8.47666127,145.39,145.34,5.55491257]
[1750829070950,8.47666127,145.39,145.34,12.43524556]
[1750829072940,8.47666127,145.39,145.34,5.55491257]
[1750829073556,8.47666127,145.39,145.34,12.43524153]
[1750829076235,1.5986,145.39,145.34,12.43524153]
[1750829077449,8.47667596,145.39,145.34,12.43524153]
[1750829078251,1.5986,145.39,145.34,12.43524153]
[1750829078740,1.5986,145.39,145.35,5.55491257]
[1750829079643,1.5986,145.39,145.35,12.43472958]
[1750829082046,1.5986,145.39,145.35,5.55491257]
[1750829082557,8.4767338,145.39,145.35,5.55491257]
[1750829083148,6.4079,145.38,145.35,5.55491257]
[1750829083344,6.4079,145.38,145.34,5.55491257]
[1750829083759,13.28644346,145.38,145.33,6.88046285]
[1750829083961,18.84135603,145.38,145.33,12.43537542]
[1750829084144,18.84135603,145.38,145.33,6.88046285]
[1750829084342,13.28644346,145.38,145.33,12.43537542]
[1750829084543,13.28644346,145.38,145.34,5.55491257]
[1750829084756,6.4079,145.38,145.34,5.55491257]
[1750829085565,13.28651493,145.38,145.34,5.55491257]
[1750829085858,6.4079,145.38,145.34,12.43520181]
[1750829086562,11.96281257,145.38,145.34,12.43520181]
[1750829087963,5.55491257,145.37,145.32,5.55491257]
[1750829088459,5.55491257,145.36,145.31,5.55491257]
[1750829088967,5.55491257,145.36,145.28,7.4]
[1750829089158,5.55491257,145.33,145.27,6.88373373]
[1750829089358,5.55491257,145.33,145.28,5.55491257]
[1750829089552,10.70377796,145.34,145.29,5.55491257]
[1750829090542,12.43561123,145.34,145.29,5.55491257]
[1750829092048,5.55491257,145.34,145.29,5.55491257]
[1750829092758,20.13854199,145.35,145.3,12.43722502]
[1750829092759,13.66451257,145.35,145.3,12.43722502]
[1750829094267,20.54451008,145.35,145.3,12.43722502]
[1750829095860,8.1096,145.35,145.31,5.55491257]
[1750829096045,5.55491257,145.32,145.26,5.55491257]
[1750829096248,12.21701257,145.3,145.25,31.08924301]
[1750829096565,12.21701257,145.3,145.26,5.55491257]
[1750829096957,12.21701257,145.3,145.25,12.43959415]
[1750829097157,5.55491257,145.29,145.24,19.83996955]
[1750829097355,8.2305,145.3,145.25,5.55491257]
[1750829097544,5.55491257,145.29,145.25,5.55491257]
[1750829097744,5.55491257,145.29,145.25,12.43959223]
[1750829099169,12.43777731,145.29,145.25,5.55491257]
[1750829099363,12.43777731,145.29,145.24,19.83991827]
[1750829099765,6.88286474,145.29,145.24,19.83991827]
[1750829099964,12.43777731,145.29,145.24,19.83991827]
[1750829100369,5.55491257,145.27,145.24,7.4]
[1750829100673,5.55491257,145.28,145.24,5.55491257]
[1750829100877,5.55491257,145.28,145.23,5.55491257]
[1750829101871,5.55491257,145.28,145.23,12.44053958]
[1750829102579,5.55491257,145.28,145.24,5.55491257]
[1750829103073,5.55491257,145.26,145.22,6.88592822]
[1750829103253,6.88347478,145.28,145.22,12.44084079]
[1750829103656,5.55491257,145.27,145.22,12.44084079]
[1750829104063,6.88278615,145.29,145.23,5.55491257]
[1750829104264,5.55491257,145.28,145.23,5.55491257]
[1750829105164,5.55491257,145.28,145.22,6.88592822]
[1750829105490,5.55491257,145.28,145.23,5.55491257]
[1750829106178,41.11295001,145.3,145.23,5.55491257]
[1750829106365,41.11295001,145.3,145.22,12.44084079]
[1750829106681,5.55491257,145.27,145.22,12.44084079]
[1750829106885,41.11295001,145.3,145.23,5.55491257]
[1750829107083,5.55491257,145.28,145.23,5.55491257]
[1750829107262,5.55491257,145.27,145.23,5.55491257]
[1750829107464,41.11295001,145.3,145.21,25.53622691]
[1750829107465,39.78541257,145.3,145.25,5.55491257]
[1750829107765,41.11294449,145.3,145.24,5.55491257]
[1750829107972,5.55491257,145.29,145.24,5.55491257]
[1750829108576,41.11294449,145.3,145.24,5.55491257]
[1750829108783,12.43773624,145.29,145.24,5.55491257]
[1750829108952,5.55491257,145.28,145.24,5.55491257]
[1750829109556,12.43773624,145.29,145.24,5.55491257]
[1750829109876,12.43773624,145.29,145.21,42.75267205]
[1750829110058,12.43773624,145.29,145.23,12.44011453]
[1750829110059,5.55491257,145.28,145.23,12.44011453]
[1750829112280,5.55491257,145.28,145.22,6.88610384]
[1750829112584,5.55491257,145.28,145.23,5.55491257]
[1750829113087,5.55491257,145.27,145.22,6.88610384]
[1750829113284,5.55491257,145.27,145.22,12.44101641]
[1750829113581,6.88282367,145.29,145.22,12.44101641]
[1750829113769,5.55491257,145.27,145.22,12.44101641]
[1750829114076,12.43880823,145.27,145.22,12.44101641]
[1750829115176,26.0,145.27,145.24,5.55491257]
[1750829116485,26.0,145.27,145.23,6.88551606]
[1750829116864,26.0,145.27,145.23,12.44042863]
[1750829117563,26.0,145.27,145.23,6.88551606]
[1750829117862,26.0,145.27,145.23,12.44042863]
[1750829118058,26.0,145.27,145.24,5.55491257]
[1750829118596,26.0,145.27,145.23,12.44042863]
[1750829119471,5.55491257,145.25,145.2,5.55491257]
[1750829120188,12.43989067,145.25,145.2,5.55491257]
[1750829120789,6.8849781,145.25,145.2,12.44186244]
[1750829120983,6.8849781,145.25,145.21,5.55491257]
[1750829121187,12.43989067,145.25,145.21,5.55491257]
[1750829121488,12.43989067,145.25,145.19,6.88733204]
[1750829121489,12.43989067,145.25,145.2,5.55491257]
[1750829121974,5.55491257,145.24,145.2,5.55491257]
[1750829122171,12.44043144,145.24,145.2,5.55491257]
[1750829124799,6.88468158,145.25,145.2,12.44193315]
[1750829124988,6.6098,145.26,145.23,5.55491257]
[1750829126114,6.6098,145.26,145.23,12.44036078]
[1750829129003,6.6098,145.26,145.23,6.88544821]
[1750829129186,6.6098,145.26,145.23,12.44036078]
[1750829129490,6.6098,145.26,145.21,25.53622691]
[1750829129694,6.6098,145.26,145.22,5.55491257]
[1750829130218,6.6098,145.26,145.22,12.44055758]
[1750829130582,6.6098,145.26,145.23,5.55491257]
[1750829132294,6.6098,145.26,145.23,12.44038173]
[1750829133584,6.6098,145.26,145.24,5.55491257]
[1750829134381,13.96010326,145.29,145.2,29.65959576]
[1750829134382,1.5222,145.29,145.25,5.55491257]
[1750829134697,13.72569804,145.3,145.22,26.0]
[1750829134698,13.72569804,145.3,145.28,5.55491257]
[1750829135009,7.52219804,145.3,145.29,5.55491257]
[1750829135794,7.52219804,145.3,145.29,31.08734758]
[1750829136380,6.4623,145.34,145.29,31.08734758]
[1750829136578,6.4623,145.34,145.31,5.55491257]
[1750829136788,6.4623,145.34,145.32,5.55491257]
[1750829138505,6.4623,145.34,145.32,12.43622505]
[1750829138709,1.6134,145.36,145.33,5.55491257]
[1750829138879,26.0,145.37,145.34,5.55491257]
[1750829140007,18.48378054,145.38,145.34,5.55491257]
[1750829140304,12.92886797,145.38,145.34,5.55491257]
[1750829141181,6.05,145.38,145.35,5.55491257]
[1750829141405,6.05,145.38,145.34,5.55491257]
[1750829141585,12.9286208,145.38,145.34,5.55491257]
[1750829142302,5.55491257,145.35,145.27,18.64964886]
[1750829142485,5.55491257,145.35,145.3,5.55491257]
[1750829142986,18.0541969,145.38,145.3,5.55491257]
[1750829143188,5.55491257,145.35,145.3,5.55491257]
[1750829143503,12.43532657,145.35,145.3,5.55491257]
[1750829144600,6.880414,145.35,145.3,12.43719848]
[1750829144805,12.43532657,145.35,145.31,5.55491257]
[1750829145611,12.43532657,145.35,145.28,25.53290877]
[1750829145900,12.43532657,145.35,145.31,5.55491257]
[1750829147790,6.05,145.38,145.31,6.88172093]
[1750829147994,5.55491257,145.37,145.33,5.55491257]
[1750829149002,12.43409823,145.37,145.33,5.55491257]
[1750829150400,12.43409823,145.37,145.3,6.88231245]
[1750829150594,12.43409823,145.37,145.33,5.55491257]
[1750829150796,6.87918566,145.37,145.33,5.55491257]
[1750829151094,12.43409823,145.37,145.33,5.55491257]
[1750829152108,12.43409823,145.37,145.3,6.88231245]
[1750829152488,12.43409823,145.37,145.32,5.55491257]
[1750829152896,6.87918566,145.37,145.32,5.55491257]
[1750829153090,12.43409823,145.37,145.32,5.55491257]
[1750829153490,5.55491257,145.36,145.32,5.55491257]
[1750829154516,12.43409823,145.37,145.32,5.55491257]
[1750829154917,6.87918566,145.37,145.33,5.55491257]
[1750829155104,12.43409823,145.37,145.33,5.55491257]
[1750829155497,12.43409823,145.37,145.32,5.55491257]
[1750829156426,5.55491257,145.36,145.29,25.53234257]
[1750829156626,5.55491257,145.36,145.32,5.55491257]
[1750829157429,6.87994496,145.35,145.32,5.55491257]
[1750829157932,6.87961007,145.36,145.32,5.55491257]
[1750829159825,12.43452264,145.36,145.29,25.53228299]
[1750829160023,12.43452264,145.36,145.32,5.55491257]
[1750829160504,5.55491257,145.34,145.3,5.55491257]
[1750829160701,11.70521257,145.33,145.29,5.55491257]
[1750829161008,11.70521257,145.33,145.28,24.20456143]
[1750829161424,6.1503,145.33,145.28,24.20456143]
[1750829161626,6.1503,145.33,145.29,5.55491257]
[1750829161927,6.1503,145.33,145.29,12.43763656]
[1750829162430,6.1503,145.33,145.3,5.55491257]
[1750829163726,26.0,145.36,145.32,5.55491257]
[1750829164436,32.87960272,145.36,145.32,5.55491257]
[1750829165422,26.0,145.36,145.32,5.55491257]
[1750829165741,48.06467617,145.37,145.32,12.43618703]
[1750829165939,18.44467617,145.37,145.32,12.43618703]
[1750829168929,12.8897636,145.37,145.32,12.43618703]
[1750829169133,18.44467617,145.37,145.32,12.43618703]
[1750829174139,5.55491257,145.36,145.32,12.43618703]
[1750829176339,6.8791636,145.37,145.33,5.55491257]
[1750829179340,12.01987023,145.37,145.33,5.55491257]
[1750829180145,5.14070663,145.37,145.34,5.55491257]
[1750829180452,5.14939784,145.37,145.34,5.55491257]
[1750829180747,40.07644035,145.38,145.34,5.55491257]
[1750829181523,5.14931516,145.37,145.34,5.55491257]
[1750829181829,6.87757909,145.4,145.34,5.55491257]
[1750829182033,5.55491257,145.38,145.33,5.55491257]
[1750829182339,10.70405973,145.37,145.33,5.55491257]
[1750829182543,5.55491257,145.36,145.3,8.54838637]
[1750829182767,5.55491257,145.35,145.3,5.55491257]
[1750829182936,5.14914716,145.36,145.3,5.55491257]
[1750829183140,10.70405973,145.35,145.3,5.55491257]
[1750829183328,5.49120382,145.35,145.3,5.55491257]
[1750829183529,10.64035098,145.35,145.3,5.55491257]